bitfinex/quotes_ETHUSD_20260213
["timestamp","ask_amount","ask_price","bid_price","bid_amount"]
[1771004356736,0.002,2065.1,2064.9,0.45553821]
[1771004357457,0.002,2065.1,2064.9,1.53353821]
[1771004358159,0.002,2065.3,2065.0,0.45553821]
[1771004358460,1.21000919,2066.1,2065.0,0.45553821]
[1771004358755,4.8418419,2066.2,2065.1,1.21059512]
[1771004358950,5.30777504,2066.2,2065.2,0.45553821]
[1771004360155,0.46593314,2066.1,2065.1,1.079]
[1771004360357,0.002,2065.2,2065.1,1.079]
[1771004360654,0.002,2065.2,2065.0,1.079]
[1771004361760,0.002,2065.2,2065.1,1.66613333]
[1771004361933,1.21006776,2066.0,2065.2,0.45553821]
[1771004364461,0.002,2066.1,2065.4,0.45553821]
[1771004364677,0.002,2066.1,2065.6,0.45553821]
[1771004366453,0.002,2066.1,2065.6,1.21030209]
[1771004366845,0.002,2066.1,2065.3,1.21047789]
[1771004367046,0.002,2066.1,2065.3,2.7440161]
[1771004367851,0.002,2066.1,2065.3,2.28847789]
[1771004369657,0.002,2066.1,2065.4,0.45553821]
[1771004370257,0.002,2066.1,2065.3,2.28847661]
[1771004370455,0.46793314,2066.1,2065.3,2.28847661]
[1771004371060,0.46793314,2066.1,2065.3,1.078]
[1771004371235,0.46793314,2066.1,2065.3,1.21047376]
[1771004371437,0.002,2066.1,2065.4,0.49702195]
[1771004371936,1.21201327,2066.1,2065.4,0.49702195]
[1771004372348,1.21201327,2066.1,2065.5,1.078]
[1771004372550,0.002,2066.1,2065.5,1.57502195]
[1771004372746,0.002,2065.9,2065.5,1.57502195]
[1771004373565,0.002,2065.9,2065.6,1.21030209]
[1771004373937,0.002,2065.9,2065.3,1.21143955]
[1771004374166,0.002,2065.9,2065.5,1.078]
[1771004375254,0.002,2065.9,2065.5,1.57502195]
[1771004377062,0.002,2065.9,2065.6,1.21030209]
[1771004377264,0.002,2065.9,2065.3,1.21143743]
[1771004377567,0.002,2065.9,2065.5,1.079]
[1771004377869,0.002,2065.9,2065.3,0.001]
[1771004378043,0.49713114,2065.9,2065.3,0.001]
[1771004379183,1.21215472,2065.9,2065.3,0.001]
[1771004379381,0.002,2065.9,2065.3,0.001]
[1771004379586,1.212128,2065.9,2065.3,0.47822025]
[1771004380146,1.212128,2065.9,2065.3,0.001]
[1771004381085,0.002,2065.9,2065.3,0.001]
[1771004381383,0.002,2065.9,2065.5,0.47722025]
[1771004381550,0.002,2065.9,2065.4,1.078]
[1771004383771,0.002,2065.9,2065.4,1.21040096]
[1771004383966,0.002,2065.9,2065.3,0.001]
[1771004384272,0.002,2065.9,2065.3,1.2114773]
[1771004386375,0.002,2065.9,2065.3,1.68869755]
[1771004386670,0.002,2065.7,2065.4,0.47822025]
[1771004388178,0.002,2065.7,2065.5,1.68758093]
[1771004388562,0.002,2065.7,2065.6,1.081]
[1771004390358,0.002,2065.7,2065.6,2.29130209]
[1771004390562,0.002,2065.7,2065.6,2.76852234]
[1771004390779,0.002,2065.9,2065.6,2.76852234]
[1771004391172,0.002,2065.9,2065.7,0.47722025]
[1771004391480,0.002,2066.2,2065.7,0.47722025]
[1771004391683,1.70460181,2067.1,2065.7,0.47722025]
[1771004391974,1.70460181,2067.1,2065.6,3.16330209]
[1771004391975,1.70460181,2067.1,2065.9,5.58322025]
[1771004392169,1.70460181,2067.1,2066.1,0.47722025]
[1771004392481,1.70460181,2067.1,2066.2,1.20995063]
[1771004392778,1.70460181,2067.1,2066.2,1.68717088]
[1771004392948,0.49513114,2067.4,2066.3,0.47722025]
[1771004393154,1.70443796,2067.3,2066.4,1.56522025]
[1771004394163,5.33200917,2067.5,2066.5,0.47722025]
[1771004394367,5.33200917,2067.5,2066.6,1.20971644]
[1771004394683,0.49513114,2067.4,2066.5,1.20973035]
[1771004395274,0.49513114,2067.4,2066.5,1.6869506]
[1771004395489,1.49113114,2067.6,2066.6,0.47722025]
[1771004395679,1.20918984,2067.5,2066.6,0.47722025]
[1771004396380,0.996,2067.6,2066.8,0.47722025]
[1771004396680,2.08108175,2067.7,2066.9,1.56422025]
[1771004396888,1.2086637,2068.4,2067.0,0.47722025]
[1771004397181,1.2086637,2068.4,2067.1,1.959]
[1771004397182,0.49513114,2068.3,2067.1,1.959]
[1771004397381,0.49513114,2068.3,2067.2,0.47722025]
[1771004397557,0.49513114,2068.3,2067.3,1.087]
[1771004397958,0.49513114,2068.3,2067.2,1.086]
[1771004398480,1.20883903,2068.1,2067.2,1.20936532]
[1771004399382,1.70397017,2068.1,2067.1,0.47722025]
[1771004399568,1.70397017,2068.1,2067.2,1.086]
[1771004399956,0.49513114,2068.0,2067.2,1.086]
[1771004400372,0.49513114,2068.0,2067.1,1.085]
[1771004400373,0.002,2067.3,2067.1,1.085]
[1771004400684,0.002,2067.3,2066.6,4.83864386]
[1771004400685,0.002,2067.3,2066.7,1.085]
[1771004400859,0.002,2067.3,2066.8,0.4663588]
[1771004402653,0.002,2067.3,2066.9,2.76089965]
[1771004403268,0.002,2067.3,2066.5,1.20973104]
[1771004403560,0.002,2067.3,2066.9,1.086]
[1771004403758,0.002,2067.3,2066.5,1.20973104]
[1771004404086,0.47509264,2067.3,2066.1,0.4663588]
[1771004404386,0.47509264,2067.3,2066.2,0.818]
[1771004404580,0.47509264,2067.3,2066.2,1.085]
[1771004404778,0.47309264,2067.1,2066.2,2.29490528]
[1771004404973,0.47309264,2067.1,2066.0,1.21001616]
[1771004405162,0.47309264,2067.1,2066.0,1.085]
[1771004405675,0.47309264,2067.0,2065.9,0.001]
[1771004405877,0.47309264,2067.0,2065.9,1.21112363]
[1771004406081,4.9418613,2067.3,2066.0,0.4663588]
[1771004406082,0.002,2067.3,2066.0,0.4663588]
[1771004406385,0.002,2067.3,2066.3,0.4663588]
[1771004406563,0.002,2067.3,2066.5,0.4663588]
[1771004406760,0.002,2067.3,2066.7,1.2096579]
[1771004408883,0.002,2067.3,2066.6,5.92363675]
[1771004408884,0.002,2067.3,2066.6,2.29466985]
[1771004409386,0.002,2067.3,2066.6,1.20966985]
[1771004410456,0.002,2067.3,2066.5,1.5533588]
[1771004410664,0.002,2067.3,2066.5,2.76309169]
[1771004411088,0.002,2067.3,2066.5,2.29673289]
[1771004412889,0.002,2067.3,2066.6,0.4663588]
[1771004413267,0.002,2067.3,2066.7,1.2096579]
[1771004413573,0.002,2067.1,2066.7,1.6760167]
[1771004413974,0.002,2067.1,2066.7,1.2096579]
[1771004414174,0.002,2067.1,2066.6,1.20968702]
[1771004414576,0.002,2067.1,2066.6,1.67604582]
[1771004414975,0.002,2067.1,2066.7,0.4663588]
[1771004415498,0.002,2067.1,2066.8,1.20959938]
[1771004415875,0.002,2067.1,2066.9,1.089]
[1771004416065,0.002,2067.3,2067.0,0.4663588]
[1771004416269,1.20872213,2068.3,2067.0,0.4663588]
[1771004416491,1.20872213,2068.3,2067.0,1.3383588]
[1771004416688,1.20872213,2068.3,2067.1,0.4663588]
[1771004416896,0.47309264,2068.2,2067.1,0.4663588]
[1771004417090,0.47309264,2068.2,2067.0,0.872]
[1771004417890,0.47309264,2068.0,2067.0,1.089]
[1771004418293,0.47309264,2068.0,2066.8,0.4663588]
[1771004418472,0.47309264,2068.0,2066.9,0.666]
[1771004418663,0.47309264,2067.9,2066.5,1.67613378]
[1771004418866,0.47309264,2067.9,2066.6,1.089]
[1771004419485,0.47309264,2067.9,2066.6,1.5553588]
[1771004419808,1.20901441,2067.8,2066.8,1.20959938]
[1771004420392,1.20901441,2067.8,2066.8,1.67595818]
[1771004421694,1.20901441,2067.8,2066.8,1.20959938]
[1771004421874,1.20901441,2067.8,2067.0,1.20948234]
[1771004422195,1.68210705,2067.8,2066.7,1.2096579]
[1771004422399,1.68210705,2067.8,2066.7,1.6760167]
[1771004422704,1.68210705,2067.8,2066.8,0.4663588]
[1771004423075,0.47309264,2068.7,2067.0,0.4663588]
[1771004423275,0.1024,2068.6,2067.2,0.4663588]
[1771004423475,0.57549264,2068.6,2067.2,0.872]
[1771004423885,0.47309264,2068.4,2067.3,1.20930682]
[1771004426499,1.20872213,2068.3,2067.3,1.67566562]
[1771004426704,1.20869979,2068.4,2067.4,0.4663588]
[1771004427203,0.47309264,2068.3,2067.3,1.20930682]
[1771004428210,0.47309264,2068.3,2067.2,2.08132461]
[1771004428915,1.20878058,2068.2,2067.2,2.08232461]
[1771004429116,1.21078058,2068.2,2067.2,2.54868341]
[1771004429283,1.68387322,2068.2,2067.2,2.54868341]
[1771004429489,0.47309264,2068.1,2067.2,1.091]
[1771004429877,1.21078058,2068.2,2067.2,0.001]
[1771004429878,0.47309264,2067.9,2067.2,0.001]
[1771004430279,0.47309264,2067.8,2067.2,0.001]
[1771004430512,0.989,2067.7,2066.5,5.54087424]
[1771004430706,1.44247444,2067.7,2066.6,1.20971644]
[1771004431113,1.44247444,2067.7,2066.6,1.69683775]
[1771004431114,1.20913136,2067.6,2066.6,1.69683775]
[1771004431692,0.45347444,2067.5,2066.5,0.928]
[1771004432000,0.45347444,2067.5,2066.4,0.001]
[1771004432202,1.20913136,2067.6,2066.5,0.48712131]
[1771004432416,1.20899347,2067.9,2066.5,0.48712131]
[1771004432922,1.20899347,2067.9,2066.5,0.47432131]
[1771004433212,0.45922078,2068.0,2066.7,0.48712131]
[1771004433384,0.45922078,2068.0,2066.8,1.57612131]
[1771004433586,8.72860231,2067.9,2066.8,1.57612131]
[1771004433983,8.72860231,2067.9,2066.8,1.089]
[1771004434183,8.72860231,2067.9,2066.8,1.57612131]
[1771004435914,1.20901441,2067.8,2066.9,1.20954085]
[1771004437110,1.20901441,2067.8,2067.0,0.46110139]
[1771004437289,1.20901441,2067.8,2066.9,1.20954085]
[1771004438416,1.20901441,2067.8,2066.9,1.67064224]
[1771004438608,4.83734984,2068.2,2067.0,0.46110139]
[1771004438786,2.19883903,2068.1,2067.0,0.46110139]
[1771004438987,8.72860231,2067.7,2067.0,0.46110139]
[1771004439187,8.72860231,2067.7,2066.9,1.20954085]
[1771004440113,8.72860231,2067.7,2067.0,0.46110139]
[1771004440301,8.72860231,2067.7,2067.2,0.46110139]
[1771004441799,8.72860231,2067.7,2067.2,0.46210139]
[1771004441986,0.002,2067.6,2067.2,0.46210139]
[1771004442716,0.002,2067.6,2067.2,1.67144208]
[1771004442898,0.002,2067.6,2067.2,0.001]
[1771004443997,0.002,2067.6,2067.0,0.001]
[1771004443998,1.46291486,2067.6,2067.0,0.001]
[1771004444704,1.20918984,2067.5,2067.0,0.001]
[1771004445014,9.93779215,2067.5,2067.0,0.001]
[1771004446123,8.72860231,2067.5,2067.0,0.001]
[1771004448112,9.93782662,2067.5,2067.0,0.001]
[1771004448411,8.72860231,2067.5,2067.0,0.001]
[1771004449815,9.93779599,2067.5,2067.0,0.001]
[1771004450016,8.72860231,2067.5,2067.0,0.001]
[1771004451907,8.72860231,2067.5,2067.0,0.46210139]
[1771004452292,8.72860231,2067.5,2067.1,1.20942383]
[1771004452725,8.72860231,2067.5,2067.0,1.67153812]
[1771004452922,9.93780717,2067.5,2067.0,0.46210139]
[1771004453232,9.93780717,2067.5,2067.0,0.001]
[1771004455319,9.93779282,2067.5,2067.0,0.001]
[1771004455538,10.95079282,2067.5,2067.0,0.46210139]
[1771004457000,9.74160231,2067.5,2067.0,1.67155404]
[1771004457825,8.72860231,2067.5,2067.1,0.46110139]
[1771004458607,8.72860231,2067.5,2067.0,1.21045265]
[1771004459529,1.21113773,2067.6,2067.0,0.001]
[1771004461598,8.72860231,2067.5,2067.0,0.001]
[1771004461833,9.93779759,2067.5,2067.0,0.001]
[1771004463230,10.96079759,2067.5,2067.0,0.001]
[1771004466725,9.75160231,2067.5,2067.0,0.45597159]
[1771004466922,8.72860231,2067.5,2067.0,0.45597159]
[1771004467922,8.72860231,2067.5,2067.2,0.001]
[1771004468323,9.93781172,2067.5,2067.2,0.001]
[1771004469122,10.97181172,2067.5,2067.2,0.001]
[1771004472408,9.76260231,2067.5,2067.2,0.001]
[1771004472939,10.97179863,2067.5,2067.2,0.001]
[1771004473760,0.46527444,2067.4,2067.0,0.001]
[1771004473923,1.046,2067.3,2067.0,0.001]
[1771004475049,1.20936532,2067.2,2067.0,0.001]
[1771004475342,1.049,2067.1,2067.0,0.001]
[1771004476023,1.05,2067.3,2067.0,0.001]
[1771004476747,1.2111613,2067.6,2067.0,0.45597159]
[1771004477052,8.72860231,2067.2,2067.0,0.45597159]
[1771004479546,8.72860231,2067.2,2067.0,1.66545015]
[1771004480229,8.72860231,2067.2,2067.0,0.45597159]
[1771004480834,8.72860231,2067.2,2066.8,1.66456456]
[1771004481037,9.93798485,2067.2,2066.7,2.30161314]
[1771004481328,9.93798143,2067.2,2066.7,0.001]
[1771004483162,8.72860231,2067.2,2066.7,0.45597159]
[1771004483638,8.72860231,2067.2,2066.7,1.66560877]
[1771004483965,9.9379695,2067.2,2066.7,1.66560877]
[1771004484667,9.9379695,2067.2,2066.7,1.66562867]
[1771004484869,8.72860231,2067.2,2066.8,0.45497159]
[1771004485456,8.72860231,2067.2,2067.0,0.45497159]
[1771004485647,0.002,2067.5,2067.2,0.45497159]
[1771004486533,0.002,2067.5,2067.4,0.45497159]
[1771004486938,0.002,2067.6,2067.4,0.45497159]
[1771004487475,2.08778967,2068.2,2067.4,0.45497159]
[1771004487672,2.08778967,2068.2,2067.6,0.45497159]
[1771004487839,1.062,2068.5,2067.8,0.45497159]
[1771004488163,4.83396021,2068.7,2067.6,0.45497159]
[1771004488164,0.46527444,2068.6,2067.6,0.45497159]
[1771004488362,1.062,2068.4,2067.7,1.094]
[1771004490043,1.20872213,2068.3,2067.7,1.094]
[1771004490746,1.20872213,2068.3,2067.7,1.66401995]
[1771004491065,1.20872213,2068.3,2067.7,0.45497159]
[1771004491741,1.20872213,2068.3,2067.5,1.093]
[1771004491946,1.20872213,2068.3,2067.5,2.30218977]
[1771004492265,1.20872213,2068.3,2067.6,0.45700708]
[1771004492452,1.20872213,2068.3,2067.5,2.30218977]
[1771004492870,1.20872213,2068.3,2067.5,2.75919685]
[1771004493167,1.20872213,2068.3,2067.6,0.45700708]
[1771004493566,0.56594026,2068.8,2067.6,0.45700708]
[1771004493567,4.83397443,2068.7,2067.6,0.45700708]
[1771004493776,1.062,2068.6,2067.6,0.45700708]
[1771004494269,1.20860526,2068.5,2067.7,1.20907288]
[1771004494570,1.20860526,2068.5,2067.8,0.45700708]
[1771004495575,0.002,2068.1,2067.8,0.45700708]
[1771004496749,0.002,2068.1,2068.0,0.45700708]
[1771004497146,0.1369443,2069.4,2068.1,0.48209141]
[1771004497349,0.1369443,2069.4,2068.6,0.48209141]
[1771004497557,0.24275753,2070.0,2069.0,0.25271723]
[1771004497558,0.1389443,2069.3,2069.0,0.25271723]
[1771004497761,0.95423443,2069.7,2069.0,0.25271723]
[1771004497979,1.09317873,2069.7,2069.0,0.25271723]
[1771004498176,0.45723443,2069.6,2068.6,0.48209141]
[1771004498352,0.497,2069.7,2068.6,0.48209141]
[1771004498552,0.1389443,2069.6,2068.6,0.48209141]
[1771004498754,0.1389443,2069.6,2068.8,0.48209141]
[1771004498755,1.20802126,2069.5,2068.8,0.48209141]
[1771004498950,1.34696556,2069.5,2068.8,0.48209141]
[1771004499152,0.1389443,2069.4,2068.8,0.48209141]
[1771004499665,0.1389443,2069.4,2068.7,1.20848842]
[1771004500964,1.34702456,2069.4,2068.7,1.20848842]
[1771004501565,0.1389443,2069.4,2068.8,0.48209141]
[1771004501954,1.34702409,2069.4,2068.8,0.48209141]
[1771004502152,0.1389443,2069.4,2068.8,0.48209141]
[1771004502766,0.1389443,2069.4,2068.9,1.690463]
[1771004503084,0.1389443,2069.4,2068.9,1.630463]
[1771004503379,1.20783251,2069.9,2069.0,0.48209141]
[1771004503680,1.20783251,2069.9,2068.9,1.14837159]
[1771004503681,0.1389443,2069.9,2069.2,0.48209141]
[1771004503879,0.24275753,2070.0,2069.2,0.48209141]
[1771004504082,0.38170183,2070.0,2069.2,0.48209141]
[1771004504666,1.58943505,2070.0,2069.4,0.48209141]
[1771004505883,1.58943505,2070.0,2069.1,0.48209141]
[1771004506181,1.58943505,2070.0,2069.1,1.57609141]
[1771004506483,1.58943505,2070.0,2068.9,1.094]
[1771004506678,2.04666948,2070.0,2068.9,1.094]
[1771004506856,2.04666948,2070.0,2068.9,2.30237152]
[1771004507058,2.04666948,2070.0,2068.9,1.094]
[1771004507293,0.45723443,2069.9,2068.8,0.48209141]
[1771004507790,0.45723443,2069.9,2068.6,1.20850572]
[1771004508111,0.59617873,2069.8,2068.6,1.20850572]
[1771004508277,1.65717873,2069.8,2068.6,1.20850572]
[1771004508483,1.65717873,2069.8,2068.6,1.69059713]
[1771004508991,1.20790452,2069.7,2068.7,0.48209141]
[1771004509298,0.1389443,2069.7,2068.7,0.48209141]
[1771004509459,0.002,2069.6,2068.7,0.48209141]
[1771004509666,0.1409443,2069.6,2068.7,0.48209141]
[1771004509866,0.1389443,2069.5,2068.7,0.48209141]
[1771004510173,0.1389443,2069.5,2068.7,1.57509141]
[1771004510369,0.1389443,2069.5,2068.8,0.48209141]
[1771004510959,0.1389443,2069.4,2069.0,0.48209141]
[1771004511159,0.1389443,2069.5,2069.0,0.48209141]
[1771004511584,0.1389443,2069.4,2068.7,2.78354977]
[1771004511778,0.1389443,2069.5,2068.7,1.57509141]
[1771004512186,0.1389443,2069.4,2068.7,1.57509141]
[1771004512378,0.1389443,2069.5,2068.7,1.093]
[1771004512775,0.59617873,2069.4,2068.2,0.001]
[1771004512976,1.2081964,2069.2,2068.3,2.30169276]
[1771004513491,0.1389443,2069.1,2068.3,1.093]
[1771004513694,0.1389443,2069.1,2068.3,2.78380047]
[1771004513989,0.1389443,2069.0,2068.4,0.48209141]
[1771004514285,1.20817587,2069.3,2068.4,0.48209141]
[1771004514469,0.1389443,2069.2,2068.4,0.48209141]
[1771004515274,1.20825479,2069.1,2068.4,0.48209141]
[1771004515675,0.1389443,2069.0,2068.3,1.57509141]
[1771004515875,0.1389443,2069.0,2068.3,2.78380275]
[1771004516064,0.1389443,2068.9,2068.3,2.78380275]
[1771004516266,0.1389443,2069.0,2068.3,1.57509141]
[1771004516475,0.1389443,2069.0,2068.2,0.001]
[1771004516669,0.1389443,2068.9,2068.2,0.001]
[1771004516868,0.1389443,2069.0,2068.2,1.2097757]
[1771004517488,0.1389443,2069.0,2068.2,0.001]
[1771004517489,1.20837159,2068.9,2068.2,0.001]
[1771004518062,1.20837159,2068.9,2068.2,0.48309141]
[1771004520495,1.34729194,2069.0,2068.3,0.48209141]
[1771004520680,0.1389443,2068.9,2068.3,0.48209141]
[1771004521877,1.20834764,2069.0,2068.3,1.69079983]
[1771004522399,0.1389443,2068.9,2068.4,0.46315605]
[1771004522573,0.1389443,2069.0,2068.4,0.46315605]
[1771004522992,0.1389443,2068.9,2068.4,0.46315605]
[1771004523190,0.1389443,2069.0,2068.4,0.46315605]
[1771004523989,0.1389443,2069.0,2068.5,1.20860526]
[1771004524205,0.1389443,2068.9,2068.5,1.67076131]
[1771004524372,0.1389443,2069.0,2068.5,1.67076131]
[1771004525503,2.26826249,2069.1,2068.5,0.46215605]
[1771004525678,0.1389443,2069.0,2068.5,0.46215605]
[1771004526485,1.20836523,2069.0,2068.5,0.46215605]
[1771004526668,2.26830277,2069.1,2068.5,1.67075343]
[1771004526868,0.1389443,2069.1,2068.6,0.46215605]
[1771004527602,6.36302398,2069.7,2068.6,0.46215605]
[1771004527603,2.08100212,2069.6,2068.6,0.46215605]
[1771004529607,0.1389443,2069.5,2068.8,0.46215605]
[1771004530505,0.1389443,2069.4,2068.8,0.46215605]
[1771004530734,2.08096343,2069.6,2068.5,4.83425132]
[1771004530735,0.24275753,2070.0,2069.4,0.46215605]
[1771004530875,0.24275753,2070.0,2069.1,0.46215605]
[1771004531074,0.24275753,2070.0,2068.7,0.46215605]
[1771004531303,0.24275753,2070.0,2068.9,0.46215605]
[1771004531715,0.24275753,2070.0,2069.1,0.46215605]
[1771004532314,1.45051205,2070.0,2069.1,0.46215605]
[1771004532622,0.48348552,2069.9,2069.0,1.20831319]
[1771004532792,0.48348552,2069.9,2068.8,1.67055669]
[1771004532987,0.48348552,2069.9,2068.8,1.20840064]
[1771004533178,0.48348552,2069.9,2068.6,1.20850502]
[1771004533383,0.48348552,2069.9,2068.6,1.092]
[1771004533605,0.48348552,2069.7,2068.4,1.20966122]
[1771004533820,0.48348552,2069.5,2068.4,1.20966122]
[1771004534005,0.48348552,2069.5,2068.4,0.001]
[1771004535384,0.48348552,2069.5,2068.6,0.001]
[1771004535691,0.48348552,2069.6,2068.6,0.001]
[1771004535891,0.48348552,2069.5,2068.6,0.001]
[1771004537610,0.48348552,2069.4,2068.6,0.001]
[1771004537793,2.75662353,2069.3,2068.6,0.001]
[1771004538520,0.48348552,2069.1,2068.2,0.001]
[1771004538885,16.364605,2069.0,2067.7,1.18703042]
[1771004539082,0.48348552,2068.9,2067.7,1.18703042]
[1771004539282,0.48348552,2068.8,2067.5,2.30115738]
[1771004539498,0.48348552,2068.8,2067.5,2.76331343]
[1771004539698,0.48348552,2068.8,2067.6,0.46215605]
[1771004539904,1.20843,2068.8,2067.8,0.46215605]
[1771004541018,1.20843,2068.8,2067.7,2.30107288]
[1771004541617,1.20843,2068.8,2067.7,2.76322893]
[1771004542885,1.69191552,2068.8,2067.7,2.76322893]
[1771004546821,0.48348552,2068.7,2067.7,2.30105619]
[1771004547122,0.48348552,2068.4,2067.0,1.20948234]
[1771004547322,0.48348552,2068.0,2066.9,0.001]
[1771004547531,1.068,2067.9,2066.9,0.46315605]
[1771004548621,2.27778489,2068.2,2067.9,0.001]
[1771004548816,2.27778489,2068.2,2067.2,0.46215605]
[1771004548817,2.27778489,2068.2,2067.2,1.55515605]
[1771004549118,2.27778489,2068.2,2067.6,0.001]
[1771004549320,0.48548552,2068.6,2067.6,0.001]
[1771004550822,0.48052764,2068.5,2067.6,0.001]
[1771004551023,1.54852764,2068.4,2067.6,0.001]
[1771004551199,0.48052764,2068.3,2067.6,0.001]
[1771004551400,1.20878058,2068.2,2067.6,0.001]
[1771004552001,1.68930822,2068.2,2067.6,0.001]
[1771004552416,0.48052764,2068.1,2067.6,0.001]
[1771004552611,0.48052764,2067.9,2067.0,2.30146605]
[1771004553003,0.48052764,2067.9,2067.0,1.092]
[1771004553507,1.20901441,2067.8,2067.0,1.092]
[1771004553828,1.2090012,2067.9,2067.0,1.092]
[1771004554010,1.2090012,2067.9,2067.0,1.58460454]
[1771004554204,2.27794052,2068.0,2067.0,1.58460454]
[1771004554404,2.27794052,2068.0,2067.1,0.49260454]
[1771004554814,1.069,2068.0,2067.1,0.49260454]
[1771004555210,2.27790569,2068.0,2067.1,0.49260454]
[1771004555412,2.27790569,2068.0,2067.1,1.58360454]
[1771004555811,2.27790569,2068.0,2067.2,1.20936532]
[1771004556008,2.75843333,2068.0,2067.1,2.3004175]
[1771004556216,2.75843333,2068.0,2067.1,1.2094175]
[1771004556415,2.75843333,2068.0,2067.0,1.20943686]
[1771004556615,0.48052764,2067.9,2067.0,1.20943686]
[1771004558038,1.20901441,2067.8,2066.9,4.83903985]
[1771004558222,1.20901441,2067.8,2066.9,0.001]
[1771004558223,0.46993495,2067.7,2066.9,0.001]
[1771004558623,1.20901441,2067.8,2066.9,0.001]
[1771004559921,1.20901441,2067.8,2066.9,0.45950453]
[1771004560244,1.20895594,2067.9,2067.0,1.66798687]
[1771004560443,1.20895594,2067.9,2067.0,1.20948234]
[1771004561339,1.20895594,2067.9,2067.2,0.001]
[1771004562231,1.67889089,2067.9,2067.2,0.001]
[1771004565751,1.20895594,2067.9,2067.2,0.001]
[1771004567745,1.67889089,2067.9,2067.2,0.001]
[1771004567914,0.46993495,2067.8,2067.2,0.001]
[1771004568544,0.46993495,2067.6,2067.0,0.001]
[1771004568722,1.074,2067.5,2067.0,0.001]
[1771004569125,1.20930682,2067.3,2066.9,0.001]
[1771004569636,1.20928711,2067.4,2066.9,0.001]
[1771004570747,2.28322439,2067.5,2066.9,0.001]
[1771004572151,1.074,2067.5,2066.9,0.45950453]
[1771004572448,2.28319748,2067.5,2066.9,0.45950453]
[1771004573431,2.28319748,2067.5,2067.1,0.001]
[1771004573630,1.20919748,2067.5,2067.1,0.001]
[1771004573831,1.20917199,2067.6,2067.1,0.001]
[1771004574053,2.08212128,2067.7,2067.1,0.001]
[1771004575854,2.55205623,2067.7,2067.1,0.001]
[1771004576451,0.46993495,2067.6,2067.1,0.001]
[1771004577255,0.46993495,2067.6,2066.9,0.001]
[1771004577453,0.46993495,2067.5,2066.7,0.001]
[1771004577651,0.46993495,2067.3,2066.7,0.001]
[1771004578870,2.29024833,2067.4,2066.7,0.001]
[1771004580651,2.76018328,2067.4,2066.7,0.001]
[1771004581180,2.29024833,2067.4,2066.7,0.001]
[1771004583376,2.29026926,2067.4,2066.7,0.46424711]
[1771004584080,2.29026926,2067.4,2066.7,1.21065777]
[1771004584683,2.29026926,2067.4,2066.7,0.001]
[1771004584980,2.7690887,2067.4,2066.6,0.001]
[1771004585279,0.47881944,2067.3,2066.6,0.001]
[1771004585977,1.20936532,2067.2,2066.6,0.001]
[1771004586482,1.68818476,2067.2,2066.6,0.001]
[1771004586786,1.20936532,2067.2,2066.6,0.001]
[1771004587579,0.002,2067.3,2066.6,0.46424711]
[1771004587873,1.2113082,2067.3,2066.7,1.2096579]
[1771004588079,1.2113082,2067.3,2066.7,1.67290501]
[1771004588867,1.2113082,2067.3,2066.7,0.46324711]
[1771004589288,1.2113082,2067.3,2066.6,0.001]
[1771004589779,1.69012764,2067.3,2066.6,0.001]
[1771004591093,1.2113082,2067.3,2066.6,0.001]
[1771004591295,1.2113075,2067.3,2066.6,0.46424711]
[1771004591668,0.002,2067.3,2066.6,0.46424711]
[1771004592197,0.002,2067.3,2066.8,0.46324711]
[1771004593778,0.002,2067.3,2066.9,0.46324711]
[1771004594412,0.002,2067.3,2067.0,1.20948234]
[1771004594608,0.002,2067.3,2066.9,1.67275285]
[1771004594982,0.002,2067.3,2066.8,1.08]
[1771004595495,0.002,2067.3,2066.7,1.67290501]
[1771004595695,0.002,2067.3,2066.8,0.46324711]
[1771004596208,0.002,2067.3,2066.7,1.2096579]
[1771004596619,0.002,2067.3,2066.6,1.67396355]
[1771004598118,1.56581944,2067.3,2066.6,0.001]
[1771004598494,1.20936532,2067.2,2066.8,0.001]
[1771004598689,0.002,2067.1,2066.8,0.001]
[1771004598911,0.002,2067.1,2066.8,0.46424711]
[1771004600027,0.002,2067.1,2066.8,0.001]
[1771004601109,0.002,2067.1,2066.6,0.001]
[1771004601690,0.002,2067.1,2066.6,1.21071403]
[1771004602817,1.21142383,2067.1,2066.6,0.001]
[1771004603128,0.002,2067.1,2066.6,0.001]
[1771004609397,0.48081944,2067.1,2066.6,0.001]
[1771004609996,0.47881944,2066.9,2066.6,0.001]
[1771004610223,1.56581944,2066.9,2066.4,0.001]
[1771004611495,0.46177437,2066.8,2066.4,0.001]
[1771004612421,0.46177437,2066.6,2066.1,0.001]
[1771004613015,0.46177437,2066.6,2065.9,0.001]
[1771004613016,0.46177437,2066.6,2066.5,0.001]
[1771004613245,0.46177437,2066.6,2065.9,1.2111114]
[1771004613533,0.46177437,2066.6,2065.9,0.001]
[1771004613907,0.46177437,2066.6,2065.9,1.21112239]
[1771004614325,1.09,2066.5,2065.9,1.21112239]
[1771004614528,1.09,2066.5,2065.9,0.001]
[1771004614529,2.29981387,2066.5,2065.9,0.001]
[1771004614718,1.09,2066.5,2065.9,0.48113449]
[1771004614908,1.20966571,2066.7,2065.9,0.48113449]
[1771004615230,2.29963836,2066.8,2065.9,0.48113449]
[1771004615834,1.09,2066.8,2065.9,0.48113449]
[1771004616036,2.29961245,2066.8,2065.9,0.48113449]
[1771004616207,2.29961293,2066.8,2065.9,0.48113449]
[1771004616610,1.09,2066.8,2066.1,0.48013449]
[1771004617335,2.29960585,2066.8,2066.1,0.48013449]
[1771004618617,2.29960585,2066.8,2066.1,1.69011046]
[1771004619618,1.09,2066.8,2066.1,1.69011046]
[1771004619821,1.09,2066.8,2066.2,0.47021082]
[1771004620735,1.09,2066.8,2066.3,1.20989207]
[1771004620943,2.79954866,2066.8,2066.0,1.68023486]
[1771004621132,2.29960131,2066.8,2066.0,1.68027223]
[1771004621844,0.49994735,2066.7,2065.9,1.21110405]
[1771004622008,2.29960131,2066.8,2066.0,0.47021082]
[1771004622214,2.79954866,2066.8,2065.9,1.21110405]
[1771004622508,0.49994735,2066.7,2065.9,1.21111222]
[1771004622714,1.70966379,2066.6,2065.9,1.21111222]
[1771004622915,1.70966379,2066.6,2065.9,0.001]
[1771004624543,0.49994735,2066.5,2065.9,0.001]